Cogmind - Beta 14 @@@ ROGUE MODE // 2024.09.20 @ 19:11:10 Player: Necroptosis Result: Destroyed by G-50 Soldier with Heavy Laser Performance ------------- Evolutions (4) 2000 Regions Visited (11) 2200 Robots Destroyed (143) 715 Value Destroyed (5649) 5649 Prototype IDs (8) 160 Alien Tech Used (0) 0 Bonus (2770) 2770 TOTAL SCORE: 13494 Bonus ------- High Alert Combat Kills 259 Follower Combat Kills 1296 Met Zhirov 300 Built Enhanced Grunts 300 Met R17 at Cetus 500 Read Decrypted Archives 300 Friendly Fire -185 Cogmind --------- Core Integrity 0/850 Matter 259/300 Energy 335/360 System Corruption 11% Temperature Warm (167) Movement Treading (160) Location -6/Hub_04(d) Parts ------- > --- POWER (2) -------- Light Angular Momentum Engine Fission Core > --- PROPULSION (5) --- Centrium Heavy Treads Centrium Heavy Treads > --- UTILITY (4) ------ Improved Cooling System Medium Storage Unit Centrium Medium Armor Plating Centrium Medium Armor Plating > --- WEAPON (4) ------- Advanced Variable Charge Gun Advanced Variable Charge Gun Heavy Plasma Cannon Advanced KE Penetrator > --- INVENTORY (10) --- Centrium Heavy Treads Improved Core Shielding Improved Heavy Armor Plating Advanced KE Penetrator Peak State ------------ > --- POWER ------------ Reinforced Deuterium Engine Fission Core > --- PROPULSION ------- Improved Medium Treads Centrium Heavy Treads Centrium Heavy Treads > --- UTILITY ---------- Improved Cooling System Medium Storage Unit Centrium Medium Armor Plating Centrium Medium Armor Plating > --- WEAPON ----------- Advanced Variable Charge Gun Advanced Variable Charge Gun Heavy Plasma Cannon Advanced KE Penetrator > --- INVENTORY -------- Centrium Heavy Treads Improved Core Shielding Improved Heavy Armor Plating Advanced KE Penetrator [Rating: 106] Favorites ----------- Power Reinforced Deuterium Engine Engine Reinforced Deuterium Engine Power Core Micro Nuclear Core Propulsion Light Treads Treads Light Treads Leg Light Armored Exoskeleton Wheel Compact Wheel Utility Medium Storage Unit Device Improved Cooling System Storage Medium Storage Unit Processor Signal Interpreter Protection Makeshift Light Armor Plating Weapon Phase Cannon Energy Gun Spread Laser Energy Cannon Phase Cannon Ballistic Gun High-powered Shotgun Ballistic Cannon Assault Cannon Launcher Improved Proton Missile Launcher Build | -11 -10 -10 -8 -7 -7 -7 -6 -6 -6 -6 -6 ------- Run | Yrd Mat Sub Mat Fac Was Fac Fac Ext Cet Arc Hub Slots Evolved 8 | . . . 4 2 . . 2 . . . . Power 1 | . . . . . . . 1 . . . . Propulsion 3 | . . . 2 . . . 1 . . . . Utility 2 | . . . 1 1 . . . . . . . Weapon 2 | . . . 1 1 . . . . . . . Parts Attached 114 | 7 7 3 19 7 . 21 11 23 8 1 7 Power 14 | 1 . . 1 1 . 2 3 4 . . 2 Engine 9 | 1 . . 1 1 . 1 1 3 . . 1 Core 5 | . . . . . . 1 2 1 . . 1 Reactor . | . . . . . . . . . . . . Propulsion 33 | 2 2 1 8 1 . 7 2 6 3 . 1 Treads 20 | 2 1 . 1 1 . 4 2 6 2 . 1 Leg 6 | . . . 2 . . 3 . . 1 . . Wheel 7 | . 1 1 5 . . . . . . . . Hover . | . . . . . . . . . . . . Flight . | . . . . . . . . . . . . Utility 31 | 2 1 1 4 4 . 4 2 6 3 1 3 Device 17 | 1 1 . 3 1 . 3 2 3 1 . 2 Storage 2 | 1 . . . 1 . . . . . . . Processor 3 | . . . . 1 . 1 . 1 . . . Hackware . | . . . . . . . . . . . . Protection 9 | . . 1 1 1 . . . 2 2 1 1 Artifact . | . . . . . . . . . . . . Weapon 36 | 2 4 1 6 1 . 8 4 7 2 . 1 Energy Gun 12 | 1 3 1 2 . . 3 . . 2 . . Energy Cannon 6 | . . . . . . 1 2 3 . . . Ballistic Gun 11 | 1 1 . 3 1 . . 2 2 . . 1 Ballistic Cannon 2 | . . . . . . 2 . . . . . Launcher 5 | . . . 1 . . 2 . 2 . . . Special Weapon . | . . . . . . . . . . . . Impact Weapon . | . . . . . . . . . . . . Slashing Weapon . | . . . . . . . . . . . . Piercing Weapon . | . . . . . . . . . . . . Special Melee Weapon . | . . . . . . . . . . . . Unidentified Prototypes 7 | . . . 2 . . 1 . . 3 . 1 Corrupted Parts 3 | . . . . . . . . 1 2 . . System Corruption 11 | . . . . . . . . 8 3 . . Parts Lost 43 | . . 2 5 2 3 7 5 14 2 1 2 Power 7 | . . . . 1 . 1 2 2 . . 1 Propulsion 13 | . . 1 3 . 2 . 1 4 1 . 1 Utility 6 | . . . 1 . 1 . . 3 . 1 . Weapon 17 | . . 1 1 1 . 6 2 5 1 . . Highest Loss Streak 5 | . . 2 3 2 3 5 2 3 1 1 2 To Critical Strikes 1 | . . . . . . . . . 1 . . Average Slot Usage (%) 90 | . 100 100 92 97 67 74 91 91 87 83 83 Engine 8 | . 14 14 9 7 7 5 2 4 13 13 8 Core 3 | . . . . . . 1 10 7 . . 3 Treads 17 | . 27 25 3 6 7 8 19 19 20 20 18 Leg 3 | . . . 10 . . 6 6 6 1 . . Wheel 3 | . . 2 16 23 13 2 . . . . . Device 10 | . 14 3 14 7 2 6 6 12 12 10 8 Storage 8 | . 14 14 9 7 7 7 6 6 6 6 6 Processor 4 | . . . . 6 7 14 13 2 . . . Protection 3 | . . 10 3 6 2 . . 3 6 6 10 Energy Gun 11 | . 22 28 20 12 7 8 4 . 6 13 13 Energy Cannon 6 | . . . . . . 2 9 15 18 13 11 Ballistic Gun 6 | . 5 . 5 15 10 3 9 8 1 . 1 Peak Build Rating 106 | 7 10 13 27 32 28 43 57 66 100 104 106 Average Rating 41 | 5 9 12 22 29 20 31 53 60 86 98 101 On Entrance 38 | . 7 10 12 26 28 16 39 57 63 100 104 Naked Turns . | . . . . . . . . . . . . Heaviest Build 84 | 14 17 20 30 38 35 41 55 82 83 84 84 Greatest Support 190 | 40 40 40 44 44 44 60 76 88 190 190 190 Greatest Overweight (x) 11 | . 1 . 7 . 2 11 . 1 1 . . Average Overweight (x) . | . . . . . 1 1 . . . . . Largest Inventory Capacity 10 | 8 8 8 8 10 10 10 10 10 10 10 10 Average Capacity 9 | 7 8 8 8 9 10 10 10 10 10 10 10 Most Carried 10 | 6 8 8 8 8 7 9 10 10 10 10 10 Average Carried 7 | 4 7 7 7 6 7 6 8 8 8 9 8 Final Capacity 10 | 8 8 8 8 10 10 10 10 10 10 10 10 Final Carried 10 | 6 8 6 7 7 7 9 9 9 10 9 6 Class Distribution -------------------- 31% | Mutant 27% | Scavenger-Tank 22% | Scavenger-Gunner 7% | Gunner 4% | Scavenger-Mutant 3% | Scavenger-Skirmisher Dominant Class ---------------- Mutant | -10/Materials Mutant | -10/Subcaves Scavenger-Gunner | -8/Materials Scavenger-Tank | -7/Factory Mutant | -7/Waste Mutant | -7/Factory Scavenger-Gunner | -6/Factory Scavenger-Gunner | -6/Extension Scavenger-Tank | -6/Cetus Scavenger-Tank | -6/Archives Scavenger-Tank | -6/Hub_04(d) Resources | -11 -10 -10 -8 -7 -7 -7 -6 -6 -6 -6 -6 ----------- Run | Yrd Mat Sub Mat Fac Was Fac Fac Ext Cet Arc Hub Matter Collected 2720 | 279 145 36 240 216 . 368 294 759 133 . 250 Remotely . | . . . . . . . . . . . . Salvage Created 5818 | 18 343 20 718 341 . 587 798 1948 278 7 760 Parts 288 | 2 31 1 39 15 . 39 31 80 9 1 40 Haulers Intercepted 3 | . 1 . 1 1 . . . . . . . Recyclers Shooed 7 | 1 3 . 1 1 . 1 . . . . . Parts Field Recycled . | . . . . . . . . . . . . Retrieved Matter . | . . . . . . . . . . . . Parts Self-Destructed 11 | . . 11 . . . . . . . . . Prevented . | . . . . . . . . . . . . Kills | -11 -10 -10 -8 -7 -7 -7 -6 -6 -6 -6 -6 ------- Run | Yrd Mat Sub Mat Fac Was Fac Fac Ext Cet Arc Hub Combat Hostiles Destroyed 114 | . 15 1 21 7 . 14 12 29 4 . 11 Melee 1 | . . . . . . . . . . . 1 Guns 68 | . 15 1 16 7 . 7 5 9 . . 8 Cannons 31 | . . . . . . 5 6 16 2 . 2 AOE 7 | . . . 5 . . 2 . . . . . Classes Destroyed 20 | 1 7 1 3 1 . 4 1 2 . . . Worker 5 | . 1 . . . . 2 . . . . 2 Builder 7 | . 1 . . 1 . 1 1 1 . . 2 Tunneler 1 | 1 . . . . . . . . . . . Hauler 3 | . 1 . 1 1 . . . . . . . Recycler 6 | . . . 2 . . 1 1 2 . . . Mechanic 2 | . 1 . . . . 1 . . . . . Operator 2 | . . . . . . . . 1 . . 1 Watcher 5 | . 2 . . . . 1 . 2 . . . Swarmer 25 | . 9 . 7 . . 3 1 5 . . . Grunt 49 | . 6 . 8 5 . 2 2 18 . . 8 Brawler 2 | . . . . 1 . . . 1 . . . Duelist 2 | . . . 1 1 . . . . . . . Sentry 12 | . . . 5 . . 2 1 2 . . 2 Demolisher 2 | . . . . . . 2 . . . . . Specialist 2 | . . . . . . . 2 . . . . Hunter 7 | . . . . . . 1 4 1 1 . . Programmer 5 | . . . . . . 2 2 . . . 1 Behemoth 2 | . . . . . . . . 2 . . . Cetus Guard 3 | . . . . . . . . . 3 . . Subdweller 1 | . . 1 . . . . . . . . . Assembled 2 | . . . . . . 2 . . . . . Best Kill Streak 8 | 1 8 1 5 5 . 8 3 6 2 . 8 Combat Bots Only 7 | . 7 1 5 4 . 5 2 5 2 . 7 Max Kills in Single Turn 3 | 1 2 1 3 2 . 1 1 2 1 . 2 Gunslinging 1 | . . . . 1 . . . . . . . Exploded 3 | . . . 3 . . 1 . . . . . Melee 1 | . . . . . . . . . . . 1 Uniques/NPCs Destroyed . | . . . . . . . . . . . . Combat | -11 -10 -10 -8 -7 -7 -7 -6 -6 -6 -6 -6 -------- Run | Yrd Mat Sub Mat Fac Was Fac Fac Ext Cet Arc Hub Hostile Shots Fired 784 | . 65 7 60 20 2 172 148 184 31 . 95 Missed 210 | . 9 1 16 3 . 53 45 51 11 . 21 Damage Taken 10945 | . 624 136 710 418 101 2406 1385 2301 542 1004 1318 Core 1719 | . 200 21 145 58 . 430 163 297 . 124 281 Absorbed by Shields 248 | . . . . . . . . 182 66 . . Redirected to Shielding 111 | . . . . . . . . 111 . . . Core Remaining (%) 53 | 100 . 11 73 . . 30 . . . . . Volleys Fired 301 | 3 47 4 35 17 . 47 42 66 12 1 27 Largest 4 | 2 2 2 3 4 . 4 4 4 4 4 4 Hottest 340 | 60 130 130 195 180 . 214 248 298 340 335 335 Shots Fired 849 | 6 90 8 90 64 . 81 129 244 43 4 90 Gun 523 | 6 90 8 87 64 . 33 66 88 9 2 70 Cannon 314 | . . . . . . 43 63 152 34 2 20 Launcher 12 | . . . 3 . . 5 . 4 . . . Special . | . . . . . . . . . . . . Kinetic 249 | 3 23 . 15 34 . 19 44 88 6 . 17 Thermal 572 | 3 67 8 72 30 . 57 69 152 37 4 73 Explosive 8 | . . . 3 . . 5 . . . . . Electromagnetic 20 | . . . . . . . 16 4 . . . Robot Hit Streak 19 | 3 8 10 12 5 . 12 10 19 8 3 12 Robot Miss Streak 14 | 1 10 5 7 14 . 3 6 10 2 1 5 Penetration Max 1 | . . . . . . . . 1 . . 1 Secondary Targets 10 | . 2 . 3 2 . . . . . . 3 Max Gunslinging Chain 2 | . 1 . 1 2 . . . . . . 1 Shots Hit Robots 564 | 5 72 8 75 47 . 56 73 140 24 3 61 Core Hits 427 | 2 79 7 109 44 . 41 41 65 9 1 29 Critical Kills 9 | . . . . . . . 2 3 2 . 2 Critical Parts Destroyed 1 | . . . . . . . . . . . 1 Critical Strikes 11 | . . . . . . 1 2 3 2 . 3 Burn 1 | . . . . . . 1 . . . . . Meltdown 7 | . . . . . . . 2 3 2 . . Destroy 3 | . . . . . . . . . . . 3 Melee Attacks . | . . . . . . . . . . . . Impact . | . . . . . . . . . . . . Slashing . | . . . . . . . . . . . . Piercing . | . . . . . . . . . . . . Sneak Attacks . | . . . . . . . . . . . . Combat Hostiles . | . . . . . . . . . . . . Follow-up Attacks . | . . . . . . . . . . . . Damage Inflicted 14600 | 61 1120 123 1426 758 . 2164 1795 4281 759 80 2033 Guns 7435 | 61 936 123 1199 758 . 846 817 899 165 18 1613 Cannons 5982 | . . . . . . 815 978 3123 594 62 410 Explosions 1173 | . 184 . 227 . . 503 . 259 . . . Melee . | . . . . . . . . . . . . Ramming 10 | . . . . . . . . . . . 10 Kinetic 3113 | 39 145 . 236 472 . 354 459 899 125 . 384 Thermal 10089 | 22 791 123 963 286 . 1307 1121 3123 634 80 1639 Explosive 914 | . 184 . 227 . . 503 . . . . . Electromagnetic 474 | . . . . . . . 215 259 . . . Impact . | . . . . . . . . . . . . Slashing . | . . . . . . . . . . . . Piercing . | . . . . . . . . . . . . Highest Corruption 16 | . 2 2 . . 9 10 2 13 16 16 16 Average Corruption 8 | . 1 2 . . 9 9 2 7 14 16 12 Corruption Purged 5 | . . . . . . . . . . . 5 Corruption Blocked . | . . . . . . . . . . . . Effects 132 | . 3 6 . . 2 30 5 44 20 6 16 Message Errors 31 | . 1 1 . . 1 5 . 12 6 2 3 Matter Fused 32 | . 2 . . . . 8 1 10 4 2 5 Heat Flow Errors 12 | . . . . . . 5 . 3 3 . 1 Energy Discharges 15 | . . . . . . 3 . 5 4 1 2 Parts Rejected 1 | . . . . . . . . 1 . . . Parts Fused 1 | . . . . . . 1 . . . . . Data Loss (minor) 18 | . . 1 . . 1 5 2 5 3 1 . Data Loss (major) 7 | . . 1 . . . . 2 1 . . 3 Misfires 6 | . . 1 . . . 2 . 3 . . . Alerts 2 | . . 1 . . . . . 1 . . . Misdirections 3 | . . . . . . . . 2 . . 1 Weapon Failures 4 | . . 1 . . . 1 . 1 . . 1 Overload Shots 23 | . . . . . . 20 3 . . . . Effects 1 | . . . . . . 1 . . . . . Heat Surge 1 | . . . . . . 1 . . . . . Overflow Damage 146 | . 32 . . . . 59 . 54 . . 1 Projectiles 114 | . . . . . . 59 . 54 . . 1 Explosions 32 | . 32 . . . . . . . . . . Melee . | . . . . . . . . . . . . Knockbacks 7 | . . . . . . 7 . . . . . Impact . | . . . . . . . . . . . . Kinetic 6 | . . . . . . 6 . . . . . Secondary 1 | . . . . . . 1 . . . . . Self-Inflicted Damage 137 | . 112 . . . . 25 . . . . . Shots 2 | . 1 . . . . 1 . . . . . Rammed 2 | . . . . . . . . . . . 2 Targets Rammed 2 | . . . . . . . . . . . 2 Kicked . | . . . . . . . . . . . . Crushed . | . . . . . . . . . . . . Highest Temperature 845 | . 349 274 626 323 . 647 409 822 385 126 845 Average Temperature 184 | . 139 90 147 100 . 191 169 240 123 77 234 Received Heat Transfer 2315 | . 93 339 225 99 . 489 129 419 27 . 495 Effects 87 | . . . 11 . . 17 2 41 2 . 14 Shutdowns 27 | . . . 1 . . 2 . 19 1 . 4 Energy Bleed 14 | . . . 4 . . 5 1 2 1 . 1 Interference 21 | . . . 2 . . 6 . 10 . . 3 Matter Decay 5 | . . . . . . . . 3 . . 2 Short Circuit 9 | . . . 1 . . 3 . 2 . . 3 Damage (minor) 5 | . . . . . . . 1 4 . . . Damage (major) 2 | . . . 2 . . . . . . . . Damage (core) 4 | . . . 1 . . 1 . 1 . . 1 Siege Activations . | . . . . . . . . . . . . Robots Corrupted 1 | . . . . . . . . 1 . . . Combat Hostiles 1 | . . . . . . . . 1 . . . Parts Fried 3 | . . . . . . . 2 1 . . . Impact Corruptions . | . . . . . . . . . . . . Robots Melted 7 | . . . . . . . 2 3 2 . . Combat Hostiles 6 | . . . . . . . 1 3 2 . . Parts Melted 29 | . . . . . . 5 6 10 5 . 3 Heat Transferred 12843 | 50 960 155 1165 355 . 1899 1358 3783 881 124 2113 Parts Sabotaged . | . . . . . . . . . . . . Parts Stolen . | . . . . . . . . . . . . Parts Stripped . | . . . . . . . . . . . . Power Chain Reactions . | . . . . . . . . . . . . Alert | -11 -10 -10 -8 -7 -7 -7 -6 -6 -6 -6 -6 ------- Run | Yrd Mat Sub Mat Fac Was Fac Fac Ext Cet Arc Hub Peak Influence 854 | 5 276 . 307 259 49 365 341 497 539 837 854 Initial 280 | . 3 . . 139 34 13 156 78 277 135 280 Average 214 | 2 144 . 149 168 25 163 243 221 379 501 435 Maximum Alert Level 3 | . 1 . 1 1 . 1 1 2 2 3 3 Low Security (%) 50 | 100 76 . 70 62 100 54 25 49 . 32 . Level 1 39 | . 23 . 29 37 . 45 74 31 70 6 51 Level 2 8 | . . . . . . . . 18 29 16 39 Level 3 1 | . . . . . . . . . . 44 8 Level 4 . | . . . . . . . . . . . . Level 5 . | . . . . . . . . . . . . High Security . | . . . . . . . . . . . . Max Security . | . . . . . . . . . . . . Squads Dispatched 37 | . 2 . 1 3 . 9 6 7 1 . 8 Investigation 11 | . 1 . . 1 . . 2 6 1 . . Extermination 4 | . . . . 1 . 1 1 . . . 1 Reinforcement 13 | . 1 . 1 1 . 4 3 1 . . 2 Assault 2 | . . . . . . . . . . . 2 Garrison 7 | . . . . . . 4 . . . . 3 Intercept . | . . . . . . . . . . . . Searches Triggered . | . . . . . . . . . . . . Construction Impeded 2 | . . . . . . 1 1 . . . . Haulers Reinforced 2 | . . . . . . 1 . . . . 1 Active Scanning Responses . | . . . . . . . . . . . . Cargo Convoy Interrupts . | . . . . . . . . . . . . Stealth | -11 -10 -10 -8 -7 -7 -7 -6 -6 -6 -6 -6 --------- Run | Yrd Mat Sub Mat Fac Was Fac Fac Ext Cet Arc Hub Distress Signals 8 | . 2 . . . . . . 1 2 . 3 Communications Jammed . | . . . . . . . . . . . . Distress Signals . | . . . . . . . . . . . . Times Spotted 202 | . 25 2 28 10 4 33 15 39 11 10 25 Peak Tracking Total 16 | . 5 2 7 3 5 8 4 5 5 16 7 Tactical Retreats 12 | . 1 1 3 . 1 1 . 5 . . . Traps | -11 -10 -10 -8 -7 -7 -7 -6 -6 -6 -6 -6 ------- Run | Yrd Mat Sub Mat Fac Was Fac Fac Ext Cet Arc Hub Traps Triggered 16 | . 3 . . 9 . 1 1 2 . . . Indirectly . | . . . . . . . . . . . . Trap Hack Attempts . | . . . . . . . . . . . . Triggered . | . . . . . . . . . . . . Disarmed . | . . . . . . . . . . . . Reprogrammed . | . . . . . . . . . . . . Reused . | . . . . . . . . . . . . Traps Extracted . | . . . . . . . . . . . . Installed . | . . . . . . . . . . . . Triggered . | . . . . . . . . . . . . Machines | -11 -10 -10 -8 -7 -7 -7 -6 -6 -6 -6 -6 ---------- Run | Yrd Mat Sub Mat Fac Was Fac Fac Ext Cet Arc Hub Machines Disabled 20 | . 5 . 1 . . 2 . 5 . 2 5 Max in Single Turn 5 | . 5 . 1 . . 1 . 2 . 1 2 Garrison Access 1 | . . . . . . . . . . . 1 Energy Cycler 3 | . . . . . . . . 3 . . . Machines Repaired . | . . . . . . . . . . . . Machines Dismantled . | . . . . . . . . . . . . Machines Sabotaged . | . . . . . . . . . . . . Overloaded Fab Kills . | . . . . . . . . . . . . Hacking | -11 -10 -10 -8 -7 -7 -7 -6 -6 -6 -6 -6 --------- Run | Yrd Mat Sub Mat Fac Was Fac Fac Ext Cet Arc Hub Machines Accessed 30 | . 6 . 2 1 . 2 3 10 3 1 2 Terminals 28 | . 6 . 2 1 . 1 3 10 3 . 2 Fabricators 1 | . . . . . . 1 . . . . . Repair Stations . | . . . . . . . . . . . . Recycling Units . | . . . . . . . . . . . . Scanalyzers . | . . . . . . . . . . . . Garrison Access . | . . . . . . . . . . . . Total Hacks 99 | . 15 . 7 1 . 3 8 25 10 25 5 Successful 49 | . 10 . 2 . . 1 2 5 2 25 2 Failed 50 | . 5 . 5 1 . 2 6 20 8 . 3 Catastrophic 19 | . 1 . . 1 . . 1 10 4 . 2 Database Lockouts . | . . . . . . . . . . . . Manual 41 | . 15 . 5 1 . . 7 7 1 1 4 Terminals 73 | . 15 . 7 1 . 2 8 25 10 . 5 Fabricators 1 | . . . . . . 1 . . . . . Repair Stations . | . . . . . . . . . . . . Recycling Units . | . . . . . . . . . . . . Scanalyzers . | . . . . . . . . . . . . Garrison Access . | . . . . . . . . . . . . Terminal Hacks 38 | . 1 . 2 . . . 2 5 2 25 1 Record 27 | . . . . . . . . . 2 25 . Open Door 5 | . . . . . . . 1 4 . . . Branch Access Points 2 | . . . . . . . 1 . . . 1 Terminal Index 1 | . 1 . . . . . . . . . . Unreport Threat 1 | . . . 1 . . . . . . . . Recall Investigation 1 | . . . . . . . . 1 . . . Zone Layout 1 | . . . 1 . . . . . . . . Fabricator Hacks 1 | . . . . . . 1 . . . . . Build 1 | . . . . . . 1 . . . . . Repair Station Hacks . | . . . . . . . . . . . . Recycling Unit Hacks . | . . . . . . . . . . . . Scanalyzer . | . . . . . . . . . . . . Garrison Access Hacks . | . . . . . . . . . . . . Unauthorized Hacks 10 | . 9 . . . . . . . . . 1 Terminals 10 | . 9 . . . . . . . . . 1 Botnet 3 | . 2 . . . . . . . . . 1 Disrupt 1 | . 1 . . . . . . . . . . Skim 6 | . 6 . . . . . . . . . . Fabricators . | . . . . . . . . . . . . Repair Stations . | . . . . . . . . . . . . Recycling Units . | . . . . . . . . . . . . Scanalyzers . | . . . . . . . . . . . . Garrison Access . | . . . . . . . . . . . . Data Cores Recovered 1 | . . . . . . . . . . . 1 Used . | . . . . . . . . . . . . Hacking Detections 27 | . 6 . 2 1 . 1 2 10 3 . 2 Full Trace Events 9 | . 1 . . . . . 1 6 1 . . Feedback Events . | . . . . . . . . . . . . Feedback Blocked . | . . . . . . . . . . . . Robot Schematics Acquired . | . . . . . . . . . . . . Robots Built . | . . . . . . . . . . . . Authchips . | . . . . . . . . . . . . Time . | . . . . . . . . . . . . Total Robot Build Rating . | . . . . . . . . . . . . Part Schematics Acquired . | . . . . . . . . . . . . Parts Built 1 | . . . . . . 1 . . . . . Authchips . | . . . . . . . . . . . . Time 134 | . . . . . . 134 . . . . . Total Part Build Rating 4 | . . . . . . 4 . . . . . Parts Repaired . | . . . . . . . . . . . . Time . | . . . . . . . . . . . . Parts Recycled . | . . . . . . . . . . . . Recycled Matter . | . . . . . . . . . . . . Retrieved Matter . | . . . . . . . . . . . . Retrieved Components . | . . . . . . . . . . . . Parts Scanalyzed . | . . . . . . . . . . . . Part Schematics Acquired . | . . . . . . . . . . . . Parts Damaged . | . . . . . . . . . . . . Bothacking | -11 -10 -10 -8 -7 -7 -7 -6 -6 -6 -6 -6 ------------ Run | Yrd Mat Sub Mat Fac Was Fac Fac Ext Cet Arc Hub Used RIF Installer . | . . . . . . . . . . . . Robots Hacked . | . . . . . . . . . . . . Non-combat . | . . . . . . . . . . . . Combat . | . . . . . . . . . . . . Robot Hacks Applied . | . . . . . . . . . . . . Relay Couplers Released 1 | . . . . . . . . . . . 1 Machine Destruction 1 | . . . . . . . . . . . 1 Fabnet Peak Effective % . | . . . . . . . . . . . . Robots Rewired 6 | . . . . . . . . 6 . . . Allies Hacked . | . . . . . . . . . . . . Hacks Repelled . | . . . . . . . . . . . . Allies | -11 -10 -10 -8 -7 -7 -7 -6 -6 -6 -6 -6 -------- Run | Yrd Mat Sub Mat Fac Was Fac Fac Ext Cet Arc Hub Total Allies 17 | . . . . . . . . 12 5 . . Largest Group 6 | . . . . . . . . 5 6 5 . Highest-Rated Group 639 | . . . . . . . . 283 639 480 . Highest-Rated Ally 159 | . . . . . . . . 159 159 96 . Total Orders 2 | . . . . . . . . . . 2 . FOLLOW 2 | . . . . . . . . . . 2 . Ally Attacks 146 | . . . . . . . . 29 61 56 . Total Damage 6140 | . . . . . . . . 679 1679 3782 . Kills 30 | . . . . . . . . 5 7 18 . Allies Corrupted . | . . . . . . . . . . . . Allies Melted . | . . . . . . . . . . . . Intel | -11 -10 -10 -8 -7 -7 -7 -6 -6 -6 -6 -6 ------- Run | Yrd Mat Sub Mat Fac Was Fac Fac Ext Cet Arc Hub Robot Analysis Total . | . . . . . . . . . . . . Derelict Logs Recovered . | . . . . . . . . . . . . Drone Launches . | . . . . . . . . . . . . Drone Recoveries . | . . . . . . . . . . . . Exploration | -11 -10 -10 -8 -7 -7 -7 -6 -6 -6 -6 -6 ------------- Run | Yrd Mat Sub Mat Fac Was Fac Fac Ext Cet Arc Hub Turns Passed 7285 | 112 1352 425 551 543 80 951 864 1419 457 173 358 Spaces Moved 3738 | 51 669 229 283 389 73 518 428 627 233 106 132 Core 12 | 4 . . 1 . . 7 . . . . . Treads 2598 | 47 658 229 7 . . 131 428 627 233 106 132 Legs 111 | . . . 15 . . 96 . . . . . Wheels 1017 | . 11 . 260 389 73 284 . . . . . Hover . | . . . . . . . . . . . . Flight . | . . . . . . . . . . . . Fastest Speed 50 | 50 115 160 95 96 96 120 160 160 160 160 160 Average Speed 147 | 151 159 160 111 96 110 147 160 164 167 160 160 Slowest Speed 600 | 160 160 160 400 96 120 600 160 240 240 160 160 Overloaded Moves . | . . . . . . . . . . . . Propulsion Burnouts . | . . . . . . . . . . . . Robots Hopped . | . . . . . . . . . . . . Cave-ins Triggered . | . . . . . . . . . . . . Exploration Rate (%) 42 | 4 93 19 26 13 66 20 17 71 69 95 15 Regions Visited 11 Branch Regions 5 Pre-discovered Areas . | . . . . . . . . . . . . Known Exits Taken 3 | . . . . . . 1 1 1 . . . Unknown Exits Taken 6 | 1 1 1 1 . . . . . 1 1 . Scrap Searched 5 | . . 5 . . . . . . . . . Spaces Dug 10 | . . . . . . . 10 . . . . Terrain Destroyed 140 | . 13 . 12 . . 20 26 42 13 . 14 Melee . | . . . . . . . . . . . . Projectile 99 | . . . . . . 4 26 42 13 . 14 AOE 41 | . 13 . 12 . . 16 . . . . . Terrain Rammed . | . . . . . . . . . . . . Walls Destroyed . | . . . . . . . . . . . . Machines Disabled . | . . . . . . . . . . . . Actions | -11 -10 -10 -8 -7 -7 -7 -6 -6 -6 -6 -6 --------- Run | Yrd Mat Sub Mat Fac Was Fac Fac Ext Cet Arc Hub Total 4886 | 76 866 280 445 518 72 626 518 885 276 107 217 Wait 518 | 10 129 42 92 51 . 29 31 84 6 . 44 Move 3728 | 50 668 228 282 389 72 517 427 626 232 105 132 Hop . | . . . . . . . . . . . . Pick Up 57 | 6 7 1 7 4 . 6 6 13 7 . . Fast Attach 50 | 7 2 1 11 1 . 10 3 8 5 . 2 Attach 38 | . . 2 3 5 . 6 6 11 1 1 3 Detach 2 | . . . . 1 . . . . . . 1 Swap 26 | . 5 . 5 1 . 5 2 4 2 . 2 Drop 52 | . 8 2 10 1 . 6 1 9 11 . 4 Fire 301 | 3 47 4 35 17 . 47 42 66 12 1 27 Melee . | . . . . . . . . . . . . Ram . | . . . . . . . . . . . . Kick . | . . . . . . . . . . . . Crush 2 | . . . . . . . . . . . 2 Escape Stasis 48 | . . . . 48 . . . . . . . Rewire 64 | . . . . . . . . 64 . . . Trap . | . . . . . . . . . . . . Miscellaneous . | . . . . . . . . . . . . Route ------- -11/Scrapyard -10/Materials (discovered 5 exits: [*Mat x3] / [*Min] / [*Sub]) -10/Subcaves -8/Materials -7/Factory -7/Waste -7/Factory -6/Factory (discovered 4 exits: Low x2 / *Ext x2) -6/Extension (discovered 2 exits: *Fac / *Cet) -6/Cetus (discovered 2 exits: *Fac / *Arc) -6/Archives (discovered 3 exits: *Fac / *Hub x2) -6/Hub_04(d) History --------- Turn | Location | Event 8 | -11/Scrapyard | Discovered new exit (range 15) 113 | -11/Scrapyard | Entered Materials 302 | -10/Materials | Build established: Mutant 577 | -10/Materials | Discovered new exit (range 16) 592 | -10/Materials | Destroyed 7 combat bots 722 | -10/Materials | Discovered new exit (range 16) 899 | -10/Materials | Discovered new exit (range 14) 1027 | -10/Materials | Discovered new exit (range 13) 1102 | -10/Materials | Discovered new exit (range 15) 1113 | -10/Materials | Core integrity fell below 50% 1465 | -10/Materials | Entered Subcaves 1539 | -10/Subcaves | Shifting Twisted Machinery released Mak. Light Armor Plating 1572 | -10/Subcaves | Shifting Twisted Machinery released Sub. Power Source 1810 | -10/Subcaves | Discovered new exit (range 9) 1827 | -10/Subcaves | Core integrity fell below 20% 1890 | -10/Subcaves | Entered Materials 1890 | -8/Materials | Evolved 4 slots: Propulsion x2, Utility x1, Weapon x1 2077 | -8/Materials | Lost 3 parts (2n1w) 2400 | -8/Materials | Discovered new exit (range 14) 2441 | -8/Materials | Entered Factory 2441 | -7/Factory | Evolved 2 slots: Utility x1, Weapon x1 2648 | -7/Factory | Build established: Scavenger-Tank 2984 | -7/Factory | Sucked down chute 2984 | -7/Factory | Entered Waste 2994 | -7/Waste | Spotted C-40 Crusher 2999 | -7/Waste | EMP discharged 3002 | -7/Waste | Spotted C-40 Crusher 3004 | -7/Waste | Spotted C-40 Crusher 3009 | -7/Waste | Spotted C-40 Crusher 3012 | -7/Waste | Crushed by Compactor (1 part destroyed, 1 dropped) 3015 | -7/Waste | Crushed by Compactor (1 part destroyed, 1 dropped) 3043 | -7/Waste | Spotted C-40 Crusher 3046 | -7/Waste | Lost 3 parts (2n1u) 3046 | -7/Waste | Discovered new exit (range 13) 3062 | -7/Waste | Identified exit to Factory 3064 | -7/Waste | Entered Factory 3435 | -7/Factory | Fabricated Imp. Airjet? 3472 | -7/Factory | Garrison activated, responded to threat 3486 | -7/Factory | Assembled infested ambush trap array 3555 | -7/Factory | Lost 5 parts (1p4w) 3611 | -7/Factory | System corruption reached 10% 3611 | -7/Factory | Garrison activated, responded to threat 3628 | -7/Factory | Core integrity fell below 50% 3997 | -7/Factory | Discovered new exit (range 11) 4013 | -7/Factory | Identified exit to Factory 4015 | -7/Factory | Entered another Factory area 4015 | -6/Factory | Evolved 2 slots: Power x1, Propulsion x1 4398 | -6/Factory | Build established: Scavenger-Gunner 4698 | -6/Factory | Identified exit to Lower Caves 4698 | -6/Factory | Identified exit to Extension 4879 | -6/Factory | Entered Extension 4888 | -6/Extension | Disrupted transfer network 5135 | -6/Extension | Lost 3 parts (2n1u) 5395 | -6/Extension | Rescued a captive Derelict 5453 | -6/Extension | Rescued a captive Derelict 5455 | -6/Extension | Lost 4 allies 5541 | -6/Extension | Build established: Gunner 5674 | -6/Extension | Spotted B-75 Beast 5679 | -6/Extension | Spotted B-75 Beast 5708 | -6/Extension | Destroyed B-75 Beast 5737 | -6/Extension | Lost 3 parts (1p2w) 5750 | -6/Extension | Destroyed B-75 Beast 5775 | -6/Extension | Lost 3 parts (1n1u1w) 5824 | -6/Extension | System corruption reached 10% 5908 | -6/Extension | Rescued a captive Derelict 5909 | -6/Extension | Rescued a captive Derelict 5927 | -6/Extension | Rescued a captive Derelict 5952 | -6/Extension | Energy Cycler disabled 5952 | -6/Extension | Rescued a captive Derelict 5953 | -6/Extension | Rescued a captive Derelict 5972 | -6/Extension | Rescued A7 6087 | -6/Extension | Core integrity fell below 50% 6189 | -6/Extension | Discovered new exit (range 10) 6191 | -6/Extension | Discovered new exit (range 6) 6232 | -6/Extension | Identified exit to Cetus 6240 | -6/Extension | Identified exit to Factory 6255 | -6/Extension | Build established: Scavenger-Tank 6298 | -6/Extension | Entered Cetus 6298 | -6/Cetus | Accompanied by 5 allies (A7) 6303 | -6/Cetus | Acquired a Cetus Manufacturing Module code from A7 6328 | -6/Cetus | Spotted Cetus Guard 6328 | -6/Cetus | Spotted Cetus Guard 6336 | -6/Cetus | Allies destroyed Cetus Guard 6336 | -6/Cetus | Spotted Cetus Guard 6338 | -6/Cetus | Spotted Cetus Guard 6349 | -6/Cetus | Allies destroyed Cetus Guard 6358 | -6/Cetus | Destroyed Cetus Guard 6359 | -6/Cetus | Allies destroyed Cetus Guard 6543 | -6/Cetus | Started Cetus Manufacturing Module 6568 | -6/Cetus | Manufactured an Enhanced Grunt 6576 | -6/Cetus | Discovered new exit (range 15) 6593 | -6/Cetus | Manufactured an Enhanced Grunt 6618 | -6/Cetus | Manufactured an Enhanced Grunt 6631 | -6/Cetus | Spotted Cetus Guard 6631 | -6/Cetus | Spotted Cetus Guard 6634 | -6/Cetus | Spotted Cetus Guard 6634 | -6/Cetus | Spotted Cetus Guard 6638 | -6/Cetus | Destroyed Cetus Guard 6641 | -6/Cetus | Destroyed Cetus Guard 6643 | -6/Cetus | Manufactured an Enhanced Grunt 6648 | -6/Cetus | Allies destroyed Cetus Guard 6654 | -6/Cetus | Allies destroyed Cetus Guard 6658 | -6/Cetus | Discovered exit to Factory (range 15) 6666 | -6/Cetus | Met Revision 17 6668 | -6/Cetus | Manufactured an Enhanced Grunt 6755 | -6/Cetus | Entered Archives 6755 | -6/Archives | Accompanied by 6 allies (A7) 6786 | -6/Archives | Met Zhirov 6792 | -6/Archives | Reinforcements dispatched to Archives 6816 | -6/Archives | Read partially decrypted archive contents 6819 | -6/Archives | Discovered new exit (range 16) 6837 | -6/Archives | Reinforcements dispatched to Archives 6837 | -6/Archives | Unable to access archive contents 6839 | -6/Archives | Zhirov warped through subspace 6857 | -6/Archives | Zhirov detonated Archives 6877 | -6/Archives | Discovered exit to Factory (range 16) 6888 | -6/Archives | Lost 5 allies 6903 | -6/Archives | Discovered new exit (range 14) 6928 | -6/Archives | Entered Hub_04(d) 7153 | -6/Hub_04(d) | Garrison activated, responded to threat 7191 | -6/Hub_04(d) | Core integrity fell below 20% 7204 | -6/Hub_04(d) | Garrison activated, responded to threat 7251 | -6/Hub_04(d) | Destroyed 7 combat bots 7278 | -6/Hub_04(d) | First assault squad dispatched 7286 | -6/Hub_04(d) | Destroyed by G-50 Soldier with Heavy Laser Last Messages --------------- 07257_ Control Node disabled. 07261_ Slug penetrates Control Node. 07264_ Slug penetrates G-50 Soldier. 07264_ G-50 Soldier destroyed. 07267_ Slug penetrates Wall. 07268_ K-01 Serf collects debris. 07275_ ALERT: Suspicious intruders detected, dispatching Specialist reinforcements to area. 07278_ ALERT: Significant disruption in Zone 8A, assault force dispatched. 07278_ Critical hit (Burn: +37). 07278_ Slug penetrates G-50 Soldier. 07282_ Destroyed Lgt. Angular Momentum Engine. 07282_ Slug penetrates G-50 Soldier. 07283_ C-30 ARC bursts open, deploying its payload. 07283_ G-67 Veteran unfolds itself. 07283_ B-48 Gladiator unfolds itself. 07283_ G-50 Soldier unfolds itself. 07283_ I-36 Angel unfolds itself. 07285_ Slug penetrates G-50 Soldier. Map ----- +----------------------------------------------------+ | | | | | | | | | | | | | ?????????????????????????????????????????????????? | | ?????????????????????????????????????????????????? | | ??????????????????????????????????#####??????????? | | ?????????????##########?###################??????? | | ?????????????# #?# # #??????? | | ?????????????# ! #?# """ # #??????? | | ?????????????# #?# # #??????? | | ?????????????# #?# "" # #??????? | | ?????????????# #?#""" * # ] #??????? | | ?????????????# #?#"T ! # #??????? | | ?????????????# #?#""!![ # #??????? | | ?????????????? ### ""!==] # #??????? | | ???????????????? ?# # ![%!=* # ##?????? | | ????+###/#########+#########+#########+########### | | ???# %= [% | | ???+ !=! *!* | | ???# *%%! *== H % | | ????## ###########+#########+#########+#########/# | | ???????????# = ### !% ## ![*[ #? | | ???????????# """" /g@ ## ]!!# " " | | ???????????# """" """" ### =!!""##! ]!!# " " | | ???????????# """" """" ## [=%["## !! # " " | | ???????????# """" """" ### b %* G## """ # | | ???????????# #?# g" ""## "G # " " | | ???????????# """T""" #?# g ""## """ + " " | | ???????????#############?# %i ## # " ? | | ?????????????????????????####/############### ? | | ?????????????????????????????x ?????????????###### | | ??????????????????????????????! ?????????????????? | | ?????????????????????????????? ?????????????????? | | ??????????????????????????????? ????????????????? | | ??????????????????????????????? #???????????????? | | ???????????????????????????????? ????????????????? | | ?????????????????????????????????????????????????? | | ?????????????????????????????????????????????????? | | ?????????????????????????????????????????????????? | | ?????????????????????????????????????????????????? | | ?????????????????????????????????????????????????? | | ?????????????????????????????????????????????????? | | ?????????????????????????????????????????????????? | | ?????????????????????????????????????????????????? | | ?????????????????????????????????????????????????? | | ?????????????????????????????????????????????????? | | ?????????????????????????????????????????????????? | +----------------------------------------------------+ Best States ------------- Heat Dissipation 91 Energy Generation 31 Energy Capacity 500 Matter Stores 300 Matter Capacity 300 Sight Range 16 Robot Scan Range 15 Terrain Scan Range 16 Terrain Scan Density 10 Armor Coverage 450 Weapon Shielding 66 Weapon Cycling 15 Evasion (%) 55 Targeting Accuracy 8 Recoil Reduction 5 Item Schematics ----------------- None Robot Schematics ------------------ None Fabricated ------------ Imp. Airjet | x1 | -7/Factory | Preloaded Alien Tech Used ----------------- None Achievements -------------- Overkill Project G-00 Revising The Future Challenges ------------ None Game ------ Seed BombardmentFlyingShielding Manual? 0 Play Time 00:59:38 Cumulative 31.9 hours Start 2024.09.20 @ 18:08:07 End 2024.09.20 @ 19:11:10 Sessions 1 Manual Loads 0 Difficulty Rogue Special Mode None Game No. 45 Rogue 45 Adventurer 0 Explorer 0 Win Type - Total 1 Types 1/0/0/0/0/0/0/0/0 Lore% 27 Gallery% 39 Achievement% 40 Wizard Run 0 Options --------- Layout 1 ASCII 0 Keyboard 0 Movement Mouse Keybinds 0 Fullscreen 1 Font 20/SmallcapsGlow Map View 54x42 Zoom Use 0% Tactical HUD 1 Map Filters NONE Filters NONE Steam 1 RUN: c0521898-1f66-4243-968e-303a44b526ec